bitfinex/quotes_ETHUSD_20230405
["timestamp","ask_amount","ask_price","bid_price","bid_amount"]
[1680708650590,0.18449,1897.2,1896.6,0.1]
[1680708650790,0.55345,1897.2,1896.6,0.1]
[1680708652317,2.39827,1897.2,1896.6,0.1]
[1680708652692,2.89827,1897.2,1896.6,0.1]
[1680708655299,0.55345,1897.2,1896.6,0.1]
[1680708658508,0.18449,1897.2,1896.7,1.02165799]
[1680708658698,16.44714,1897.7,1896.8,1.23]
[1680708658939,0.18448,1897.3,1896.8,1.3321658]
[1680708659146,1.1067,1897.6,1896.9,0.13321658]
[1680708659314,1.1067,1897.6,1897.0,0.25165456]
[1680708659315,0.18445,1897.5,1897.0,0.25165456]
[1680708659712,0.18445,1897.5,1897.0,1.25165456]
[1680708659920,0.18445,1897.5,1897.1,0.12516546]
[1680708660503,0.36888,1897.6,1897.1,0.12516546]
[1680708660838,0.210813,1897.8,1897.1,0.12516546]
[1680708661072,0.210813,1897.8,1897.2,0.02165228]
[1680708661279,0.210813,1897.8,1897.3,0.01844]
[1680708661889,0.395233,1897.8,1897.2,0.02165228]
[1680708662256,0.395233,1897.8,1897.2,0.04009228]
[1680708662649,0.764073,1897.8,1897.2,0.02165228]
[1680708663644,0.76171719,1897.8,1897.2,0.02165228]
[1680708664346,0.76171719,1897.8,1897.2,0.04009228]
[1680708664548,0.76171719,1897.8,1897.2,0.02165228]
[1680708664992,0.39287719,1897.8,1897.2,2.62165228]
[1680708665161,0.76171719,1897.8,1897.2,2.62765228]
[1680708668245,0.39287719,1897.8,1897.2,2.64609228]
[1680708668791,0.39287719,1897.8,1897.2,2.89246151]
[1680708669359,0.39287719,1897.8,1897.2,2.91090151]
[1680708669976,0.39287719,1897.8,1897.2,2.89246151]
[1680708670180,0.39287719,1897.8,1897.2,2.91090151]
[1680708671044,0.39287719,1897.8,1897.2,2.89246151]
[1680708671450,0.39287719,1897.8,1897.2,2.91090151]
[1680708671673,0.20845719,1897.8,1897.2,2.94779151]
[1680708671879,0.39287719,1897.8,1897.2,2.91090151]
[1680708672279,0.39287719,1897.8,1897.2,2.89246151]
[1680708673088,0.39287719,1897.8,1897.2,2.91090151]
[1680708674213,0.39287719,1897.8,1897.2,2.89246151]
[1680708674730,0.76171719,1897.8,1897.2,2.89246151]
[1680708674880,0.39287719,1897.8,1897.2,2.91090151]
[1680708675313,0.39287719,1897.8,1897.2,2.94779151]
[1680708675314,0.20845719,1897.8,1897.2,2.94779151]
[1680708677203,14.76377719,1898.0,1897.2,2.94779151]
[1680708678117,0.18442,1897.9,1897.2,2.94779151]
[1680708679126,0.18441,1897.9,1897.2,2.94779151]
[1680708679717,14.39496719,1898.0,1897.2,2.94779151]
[1680708679920,0.18441,1897.9,1897.2,2.94779151]
[1680708680638,14.57937719,1898.0,1897.2,2.94779151]
[1680708681243,5.3915,1898.0,1897.2,2.94779151]
[1680708681540,0.002,1898.0,1897.3,3.23]
[1680708681710,0.13291916,1898.4,1897.5,0.12911]
[1680708681914,15.56776,1898.5,1897.5,3.13511]
[1680708682103,15.56776,1898.5,1897.6,0.313511]
[1680708682303,15.56776,1898.5,1897.8,0.01844]
[1680708683445,15.56776,1898.5,1897.8,0.04008544]
[1680708683748,15.93647,1898.5,1897.8,0.04008544]
[1680708684306,15.93647,1898.5,1897.8,0.02164544]
[1680708684737,15.93647,1898.5,1897.8,0.04008544]
[1680708684946,16.06533956,1898.5,1897.8,0.04008544]
[1680708685309,16.06533956,1898.5,1897.8,0.02164544]
[1680708685850,16.06533956,1898.5,1897.8,0.04008544]
[1680708686941,15.93647,1898.5,1897.8,0.04008544]
[1680708687522,16.357955,1898.5,1897.8,0.04008544]
[1680708689147,15.989245,1898.5,1897.8,0.07696544]
[1680708689524,15.989245,1898.5,1897.8,0.04008544]
[1680708689934,15.989245,1898.5,1897.8,0.07696544]
[1680708689935,15.804885,1898.5,1897.8,0.07696544]
[1680708690250,15.989235,1898.5,1897.8,0.15072544]
[1680708690411,15.804885,1898.5,1897.8,0.15072544]
[1680708691113,15.989235,1898.5,1897.8,0.15672544]
[1680708691315,15.989235,1898.5,1897.8,0.04608544]
[1680708691553,15.989235,1898.5,1897.8,0.27608544]
[1680708691713,16.357945,1898.5,1897.8,0.02764544]
[1680708692118,15.989235,1898.5,1897.9,0.01844]
[1680708692348,15.989235,1898.5,1897.8,0.04608544]
[1680708693349,15.989235,1898.5,1897.8,0.08296544]
[1680708694220,0.4280675,1898.4,1897.8,0.08296544]
[1680708696787,4.069,1898.3,1897.8,0.006]
[1680708696993,1.29073,1898.2,1897.8,0.006]
[1680708697291,0.18638,1898.3,1897.7,2.606]
[1680708697435,3.55313,1898.3,1897.7,2.6]
[1680708698783,4.069,1898.0,1896.7,3.69722528]
[1680708698992,4.069,1897.3,1896.7,0.006]
[1680708699281,4.069,1897.3,1896.6,0.12045]
[1680708699282,0.55347,1897.2,1896.6,0.1]
[1680708699686,9.4346,1897.3,1896.6,0.15535]
[1680708699846,0.002,1897.3,1896.6,0.11845]
[1680708700044,5.495,1897.5,1896.6,0.15535]
[1680708700045,5.491,1897.5,1896.6,0.15535]
[1680708700283,5.491,1897.5,1896.7,0.02165799]
[1680708700584,5.491,1897.5,1896.7,0.07700799]
[1680708701283,5.67545,1897.5,1896.7,0.02165799]
[1680708701470,5.491,1897.5,1896.7,0.04010799]
[1680708701791,5.491,1897.5,1896.7,0.07700799]
[1680708701954,5.491,1897.5,1896.7,0.30700799]
[1680708702290,0.40706946,1897.4,1896.7,0.30700799]
[1680708704260,0.40706946,1897.4,1896.7,0.31300799]
[1680708704456,0.40706946,1897.4,1896.7,0.30700799]
[1680708705484,0.40706946,1897.4,1896.7,0.27010799]
[1680708705986,0.40706946,1897.4,1896.7,0.25165799]
[1680708705987,0.59152946,1897.4,1896.7,0.25165799]
[1680708706285,0.40706946,1897.4,1896.7,0.27010799]
[1680708706686,0.40706946,1897.4,1896.7,0.36308354]
[1680708706985,0.40706946,1897.4,1896.7,0.39998354]
[1680708709069,0.59152946,1897.4,1896.7,0.36308354]
[1680708709888,0.96044946,1897.4,1896.7,0.34463354]
[1680708710084,0.96044946,1897.4,1896.7,0.11463354]
[1680708710257,0.96044946,1897.4,1896.7,0.04010799]
[1680708710459,0.96044946,1897.4,1896.7,0.02165799]
[1680708710670,1.46044946,1897.4,1896.7,0.02165799]
[1680708711768,0.96044946,1897.4,1896.7,0.02165799]
[1680708711948,0.96044946,1897.4,1896.7,0.08734354]
[1680708712150,0.96044946,1897.4,1896.7,0.02165799]
[1680708712554,0.96044946,1897.4,1896.7,0.04010799]
[1680708713290,0.98810745,1897.4,1896.5,0.03691]
[1680708713490,0.98810745,1897.4,1896.7,0.01845]
[1680708715120,0.43472745,1897.4,1896.7,0.05535]
[1680708716014,0.61918745,1897.4,1896.7,0.05535]
[1680708716313,0.61918745,1897.4,1896.7,0.01845]
[1680708716902,0.61918745,1897.4,1896.6,0.05535]
[1680708716903,0.98810745,1897.4,1896.6,0.05535]
[1680708717105,0.98810745,1897.4,1896.6,0.24845]
[1680708718490,0.98810745,1897.4,1896.6,0.23]
[1680708719007,1.48810745,1897.4,1896.6,0.23]
[1680708719211,1.48810745,1897.4,1896.5,0.01845]
[1680708719212,1.48810745,1897.4,1896.5,0.24845]
[1680708719387,1.48810745,1897.4,1896.6,0.01845]
[1680708720435,1.48810745,1897.4,1896.5,0.24845]
[1680708720583,1.48810745,1897.4,1896.6,0.01845]
[1680708722486,0.41306946,1897.4,1896.6,0.05535]
[1680708722687,0.40706946,1897.4,1896.9,4.069]
[1680708722899,0.40706946,1897.4,1897.1,0.12912]
[1680708723640,0.40706946,1897.4,1897.2,0.23]
[1680708723789,0.40706946,1897.4,1897.3,0.01844]
[1680708723993,0.40706946,1897.4,1897.3,0.05533]
[1680708725431,0.40706946,1897.4,1897.3,0.01844]
[1680708725597,0.40706946,1897.4,1897.3,0.05533]
[1680708726531,0.40706946,1897.4,1897.3,0.01844]
[1680708727397,0.40706946,1897.4,1897.3,0.05533]
[1680708727694,0.40706946,1897.4,1897.3,0.01844]
[1680708730493,0.40706946,1897.4,1897.3,0.05533]
[1680708731395,0.40706946,1897.4,1897.3,0.391242]
[1680708731627,0.40706946,1897.4,1897.3,0.621242]
[1680708733923,0.38706946,1897.4,1897.3,0.625242]
[1680708734127,0.38706946,1897.4,1897.3,0.621242]
[1680708734296,0.006,1898.0,1897.3,0.621242]
[1680708734496,0.006,1898.0,1897.5,0.01844]
[1680708735445,0.32920061,1897.9,1897.5,0.05533]
[1680708735602,0.32920061,1897.9,1897.5,0.12911]
[1680708735801,0.32920061,1897.9,1897.7,0.01844]
[1680708736030,0.32920061,1897.9,1897.7,0.05532]
[1680708736243,0.006,1898.2,1897.7,0.05532]
[1680708737578,0.02165799,1898.1,1897.7,0.05532]
[1680708739074,0.02165799,1898.1,1897.7,0.01844]
[1680708739778,0.02165799,1898.1,1897.7,0.05532]
[1680708740446,0.006,1898.2,1897.7,0.12909]
[1680708740772,0.006,1898.3,1897.9,0.12908]
[1680708741176,0.006,1898.5,1897.9,0.12908]
[1680708741535,0.006,1898.5,1897.9,0.441988]
[1680708742279,0.31833175,1898.4,1897.9,0.441988]
[1680708742448,0.32433175,1898.4,1897.9,0.441988]
[1680708742972,0.32433175,1898.4,1898.1,0.01843]
[1680708743182,0.33998974,1898.4,1898.0,0.24844]
[1680708743328,0.33998974,1898.4,1898.0,0.28532]
[1680708743534,0.33998974,1898.4,1898.0,0.3488308]
[1680708745185,0.33998974,1898.4,1898.0,0.3119508]
[1680708745487,0.33998974,1898.4,1898.0,0.24844]
[1680708745637,0.33998974,1898.4,1897.9,0.01844]
[1680708745835,0.52435974,1898.4,1897.8,0.01844]
[1680708746073,5.90848974,1898.4,1897.9,0.01844]
[1680708746244,5.91648974,1898.4,1897.9,0.01844]
[1680708747472,5.91648974,1898.4,1897.7,0.51485513]
[1680708747695,15.89678974,1898.4,1897.9,0.01844]
[1680708748850,15.89678974,1898.4,1897.5,12.8415]
[1680708749104,16.44987974,1898.4,1897.6,0.05532]
[1680708749394,16.08114974,1898.4,1897.6,0.05532]
[1680708750603,0.5,1898.3,1897.6,0.05532]
[1680708750758,0.69037,1898.3,1897.5,3.0]
[1680708750952,0.506,1898.3,1897.6,0.05532]
[1680708751184,0.69037,1898.3,1897.6,0.05532]
[1680708751901,0.506,1898.3,1897.6,0.05532]
[1680708752197,0.006,1898.3,1897.6,0.05532]
[1680708752403,0.19037,1898.3,1897.6,0.05532]
[1680708752763,0.006,1898.3,1897.6,0.05532]
[1680708754260,0.02165799,1898.2,1897.6,0.05532]
[1680708754472,0.02765799,1898.2,1897.6,0.05532]
[1680708754672,0.02165799,1898.2,1897.6,0.05532]
[1680708756159,0.21203799,1898.2,1897.6,0.01844]
[1680708756472,0.21203799,1898.2,1897.4,3.03689]
[1680708756473,3.21509054,1898.2,1897.4,3.03689]
[1680708756801,3.21509054,1898.2,1897.5,0.01844]
[1680708756802,0.68109293,1898.1,1897.5,0.01844]
[1680708756997,6.02889293,1898.1,1897.4,0.01844]
[1680708757161,0.20606799,1898.0,1897.2,0.14079681]
[1680708757359,7.27815054,1898.0,1897.3,0.01844]
[1680708757561,0.68441,1897.9,1897.2,0.19612681]
[1680708757757,0.02165799,1897.8,1897.2,0.19612681]
[1680708762046,0.02165799,1897.8,1897.2,0.71748559]
[1680708762206,0.34942351,1897.7,1897.2,0.71748559]
[1680708762847,0.34942351,1897.7,1897.3,0.23]
[1680708763140,0.34942351,1897.7,1897.4,0.12911]
[1680708763338,15.342,1898.1,1897.4,0.183467]
[1680708764200,0.3135645,1898.0,1897.4,0.183467]
[1680708770754,0.3135645,1898.0,1897.4,0.12911]
[1680708770957,0.3135645,1898.0,1897.4,0.05533]
[1680708780191,2.94784705,1898.0,1897.3,0.02444]
[1680708780484,0.5,1897.9,1897.4,0.01844]
[1680708781252,0.5,1897.9,1897.4,0.05533]
[1680708782280,0.52165799,1897.9,1897.4,0.05533]
[1680708782590,0.02165799,1897.9,1897.4,0.05533]
[1680708784763,0.02165799,1897.9,1897.3,0.01844]
[1680708785268,0.02165799,1897.9,1897.2,0.65615559]
[1680708785474,0.02165799,1897.9,1897.3,0.01844]
[1680708786085,0.02165799,1897.9,1897.3,0.05533]
[1680708787486,0.02165799,1897.9,1897.3,0.28533]
[1680708788013,0.20606799,1897.9,1897.3,0.24844]
[1680708788662,0.20606799,1897.9,1897.3,0.23]
[1680708788866,0.20606799,1897.9,1897.2,0.17768681]
[1680708788867,0.02165799,1897.9,1897.2,0.17768681]
[1680708789107,0.20606799,1897.9,1897.2,0.19612681]
[1680708790374,0.57488799,1897.9,1897.2,0.15923681]
[1680708790791,0.20606799,1897.9,1897.2,0.15923681]
[1680708791193,0.20606799,1897.9,1897.2,0.19612681]
[1680708791524,0.02165799,1897.9,1897.2,0.19612681]
[1680708792294,0.29324416,1897.8,1897.2,0.19612681]
[1680708792495,0.29324416,1897.8,1897.3,0.23]
[1680708792671,0.29324416,1897.8,1897.4,0.05533]
[1680708797191,0.29324416,1897.8,1897.3,0.24844]
[1680708798987,0.29324416,1897.8,1897.3,0.05533]
[1680708799689,0.29324416,1897.8,1897.3,0.28533]
[1680708801531,0.29324416,1897.8,1897.3,0.24844]
[1680708803488,0.29324416,1897.8,1897.3,0.28533]
[1680708805483,0.29324416,1897.8,1897.3,0.05533]
[1680708807222,0.29324416,1897.8,1897.3,0.12911]
[1680708811397,0.29324416,1897.8,1897.5,0.01844]
[1680708811748,0.29324416,1897.8,1897.4,0.24844]
[1680708812095,0.29324416,1897.8,1897.3,0.01844]
[1680708812339,0.29324416,1897.8,1897.4,0.01844]
[1680708813239,0.29324416,1897.8,1897.4,0.05533]
[1680708814215,0.47206046,1897.8,1897.4,0.05533]
[1680708816249,0.29324416,1897.8,1897.4,0.05533]
[1680708819160,0.29324416,1897.8,1897.4,0.12911]
[1680708819464,0.29324416,1897.8,1897.5,0.23]
[1680708819619,0.29324416,1897.8,1897.6,0.01844]
[1680708821137,0.29324416,1897.8,1897.6,0.05532]
[1680708822018,0.29324416,1897.8,1897.6,0.12909]
[1680708822225,0.29324416,1897.8,1897.7,0.23]
[1680708822226,0.290865,1897.8,1897.7,0.23]
[1680708822545,0.5116975,1897.8,1897.7,0.01844]
[1680708823993,0.5116975,1897.8,1897.7,0.05532]
[1680708824174,0.5116975,1897.8,1897.7,4.19809]
[1680708824380,0.5116975,1897.8,1897.7,7.847899]
[1680708824542,0.5116975,1897.8,1897.7,7.849899]
[1680708824870,0.006,1898.5,1897.7,13.48168836]
[1680708825071,0.006,1898.6,1898.1,0.12905]
[1680708825444,0.004,1898.6,1898.3,0.01843]
[1680708825650,5.2698,1898.8,1898.3,0.01843]
[1680708826050,5.2698,1898.8,1898.3,0.0553]
[1680708826685,0.008,1898.8,1898.3,0.0553]
[1680708826982,0.210683,1899.0,1898.3,0.0553]
[1680708827184,0.216683,1899.0,1898.3,0.0553]
[1680708827361,0.23834099,1899.0,1898.3,0.0553]
[1680708827557,0.23834099,1899.0,1898.3,0.391205]
[1680708827759,0.23834099,1899.0,1898.5,0.0553]
[1680708829098,0.02765799,1899.0,1898.5,0.0553]
[1680708829279,0.008,1899.1,1898.5,0.0553]
[1680708829462,0.008,1899.2,1898.5,3.498104]
[1680708829775,15.79220001,1899.3,1898.8,0.05529]
[1680708830188,0.32713604,1899.2,1898.8,0.05529]
[1680708830394,0.33313604,1899.2,1898.8,0.05529]
[1680708831352,0.33313604,1899.2,1898.8,0.28529]
[1680708831552,0.33313604,1899.2,1898.8,0.05529]
[1680708835097,0.33313604,1899.2,1898.8,0.28529]
[1680708836275,0.02165799,1899.1,1898.7,0.01843]
[1680708837797,0.02165799,1899.1,1898.7,0.05529]
[1680708839170,0.02165799,1899.1,1898.7,0.28529]
[1680708839371,0.02165799,1899.1,1898.7,0.344192]
[1680708840518,0.02165799,1899.1,1898.5,0.002]
[1680708840666,0.02165799,1899.1,1898.2,0.03687]
[1680708840667,1.609,1899.0,1898.2,0.03687]
[1680708841010,0.18431,1898.9,1898.2,0.03687]
[1680708841214,0.18431,1898.9,1898.2,0.01843]
[1680708841215,0.19031,1898.9,1898.2,0.01843]
[1680708841568,0.006,1898.9,1898.2,1.1643]
[1680708841912,0.006,1898.9,1898.3,1.21943]
[1680708842210,15.2049,1899.0,1898.4,0.0553]
[1680708842562,5.4878,1899.0,1898.4,0.2853]
[1680708842867,5.4878,1899.0,1898.4,0.443147]
[1680708843311,5.4938,1899.0,1898.4,0.443147]
[1680708843993,5.4938,1899.0,1898.6,0.05529]
[1680708844193,5.4938,1899.0,1898.6,0.28529]
[1680708844414,5.4938,1899.0,1898.6,0.424619]
[1680708845170,0.008,1899.0,1898.6,0.424619]
[1680708845412,0.02165799,1899.1,1898.6,0.387759]
[1680708846782,0.02165799,1899.1,1898.6,0.24843]
[1680708847111,0.20594799,1899.1,1898.5,0.24843]
[1680708847279,0.20594799,1899.1,1898.5,0.23]
[1680708847477,0.20594799,1899.1,1898.5,0.24843]
[1680708847817,1.31494799,1899.1,1898.5,0.24843]
[1680708848030,1.31494799,1899.1,1898.6,0.23]
[1680708848325,1.31494799,1899.1,1898.3,12.6502]
[1680708848326,1.31494799,1899.1,1898.3,3.11843]
[1680708848626,1.109,1899.0,1898.5,0.01843]
[1680708848828,1.109,1899.0,1898.5,0.0553]
[1680708849156,5.5454,1899.0,1898.5,0.0553]
[1680708849429,5.5534,1899.0,1898.5,0.0553]
[1680708850602,5.5534,1899.0,1898.5,0.01843]
[1680708851999,5.5534,1899.0,1898.5,0.0553]
[1680708854546,5.5534,1899.0,1898.5,0.01843]
[1680708854901,5.5534,1899.0,1898.5,0.0553]
[1680708857046,5.5534,1899.0,1898.5,0.01843]
[1680708857842,6.8467,1899.0,1898.3,3.01843]
[1680708858056,7.21531,1899.0,1898.3,0.01843]
[1680708858200,7.21331,1899.0,1898.3,0.01843]
[1680708858527,7.21531,1899.0,1898.3,0.01843]
[1680708858734,9.7888,1898.9,1898.3,0.01843]
[1680708858903,9.7908,1898.9,1898.3,0.01843]
[1680708859103,9.7968,1898.9,1898.3,0.01843]
[1680708860038,9.7968,1898.9,1898.3,0.2853]
[1680708860355,9.7968,1898.9,1898.3,1.48234408]
[1680708860570,9.7968,1898.9,1898.4,1.103]
[1680708860571,0.002,1898.9,1898.4,1.103]
[1680708860773,9.7968,1899.1,1898.5,1.46804]
[1680708861069,9.78826927,1899.1,1898.6,0.146804]
[1680708861239,9.78826927,1899.1,1898.7,0.12902]
[1680708863174,0.002,1899.1,1898.7,1.23802]
[1680708863464,15.65310001,1899.3,1898.9,0.12901]
[1680708863665,0.11200001,1899.3,1898.9,0.12901]
[1680708863862,0.11000001,1899.3,1898.9,0.12901]
[1680708865665,0.11000001,1899.3,1898.9,1.16429]
[1680708865865,0.11000001,1899.3,1899.0,0.364849]
[1680708867070,0.11000001,1899.3,1899.0,0.24842]
[1680708867229,0.11000001,1899.3,1899.0,0.01842]
[1680708867428,0.11000001,1899.3,1899.0,0.05528]
[1680708867630,0.11000001,1899.3,1899.0,0.28528]
[1680708868071,0.11000001,1899.3,1899.0,0.01842]
[1680708868778,0.11000001,1899.3,1899.0,0.1359453]
[1680708869386,0.11000001,1899.3,1899.1,0.23]
[1680708869671,0.11000001,1899.3,1899.2,0.05527]
[1680708871181,0.11000001,1899.3,1899.2,0.01842]
[1680708871474,0.11000001,1899.3,1899.2,0.05527]
[1680708871782,0.11000001,1899.3,1899.2,1.315353]
[1680708871936,0.11000001,1899.3,1899.2,1.545353]
[1680708873574,0.11000001,1899.3,1899.2,1.551353]
[1680708877842,0.11000001,1899.3,1899.2,2.655353]
[1680708878148,0.11000001,1899.3,1899.2,5.655353]
[1680708878351,0.11000001,1899.3,1899.2,4.548353]
[1680708878558,0.11000001,1899.3,1899.2,4.546353]
[1680708879975,0.11000001,1899.3,1899.2,1.546353]
[1680708880174,0.11000001,1899.3,1899.2,4.546353]
[1680708880389,0.11000001,1899.3,1899.2,5.655353]
[1680708880557,0.11000001,1899.3,1899.2,5.657353]
[1680708881961,0.11000001,1899.3,1899.2,4.548353]
[1680708882272,0.11000001,1899.3,1899.2,1.546353]
[1680708882748,0.11000001,1899.3,1899.2,2.655353]
[1680708882940,0.11000001,1899.3,1899.2,5.655353]
[1680708883149,0.11000001,1899.3,1899.2,5.657353]
[1680708883449,0.10634433,1899.3,1899.2,5.651353]
[1680708883857,0.10634433,1899.3,1899.2,9.812353]
[1680708884065,0.10634433,1899.3,1899.2,10.180923]
[1680708884488,0.11000001,1899.7,1899.6,0.31319]
[1680708884696,0.11000001,1899.7,1899.6,2.76019]
[1680708884877,0.11000001,1899.7,1899.6,3.036209]
[1680708885190,0.11000001,1899.7,1899.6,6.036209]
[1680708885362,0.11000001,1899.7,1899.6,6.038209]
[1680708886587,0.11000001,1899.7,1899.6,4.745969]
[1680708886898,0.11000001,1899.7,1899.6,1.743969]
[1680708889649,0.11000001,1899.7,1899.6,1.46795]
[1680708889856,0.11000001,1899.7,1899.6,0.12895]
[1680708891945,0.11000001,1899.7,1899.6,0.35895]
[1680708892146,0.11000001,1899.7,1899.6,0.12895]
[1680708892553,0.11000001,1899.7,1899.6,0.01842]
[1680708892906,0.11000001,1899.7,1899.6,0.05526]
[1680708893260,0.11000001,1899.7,1899.6,0.12895]
[1680708894354,0.11000001,1899.7,1899.6,0.35895]
[1680708894550,0.11000001,1899.7,1899.6,0.23]
[1680708894792,0.11000001,1899.7,1899.6,0.24842]
[1680708894995,0.11000001,1899.7,1899.6,0.01842]
[1680708895852,0.11000001,1899.7,1899.6,0.05526]
[1680708897200,0.11000001,1899.7,1899.6,0.202056]
[1680708897382,0.11000001,1899.7,1899.6,0.432056]
[1680708899902,0.11000001,1899.7,1899.6,0.28526]
[1680708900496,0.11000001,1899.7,1899.6,0.24842]
[1680708901118,0.11000001,1899.7,1899.6,0.01842]
[1680708901420,0.11000001,1899.7,1899.3,0.002]
[1680708901421,0.53965799,1899.6,1899.3,0.002]
[1680708901630,0.53965799,1899.6,1898.9,0.03686]
[1680708901631,1.102,1899.4,1898.8,0.01843]
[1680708901776,1.106,1899.4,1898.7,0.07373]
[1680708901983,0.02165799,1899.3,1898.9,0.01843]
[1680708902324,1.102,1899.2,1898.6,0.01843]
[1680708902486,1.102,1899.2,1898.7,0.05529]
[1680708902487,5.659,1899.2,1898.7,0.05529]
[1680708902681,5.661,1899.2,1898.7,0.05529]
[1680708904073,5.661,1899.2,1898.7,0.28529]
[1680708904886,0.002,1899.2,1898.7,1.39429]
[1680708905084,5.659,1899.4,1898.9,0.05529]
[1680708905290,5.661,1899.4,1898.9,0.28529]
[1680708905505,0.002,1899.4,1898.9,0.4460339]
[1680708905826,9.5198,1899.5,1898.9,0.4460339]
[1680708906324,9.5238,1899.5,1898.9,0.4460339]
[1680708907313,9.5078,1899.5,1898.9,0.4520339]
[1680708910817,0.002,1899.5,1898.9,0.4520339]
[1680708911035,5.59365799,1899.6,1898.9,0.4520339]
[1680708911200,5.59365799,1899.6,1899.1,0.03685]
[1680708911399,5.59365799,1899.6,1899.3,0.01842]
[1680708911601,5.572,1899.6,1899.3,0.01842]
[1680708911807,5.572,1899.6,1899.2,0.03685]
[1680708912004,5.572,1899.6,1899.3,0.01842]
[1680708912532,5.572,1899.6,1899.2,0.05527]
[1680708912831,5.572,1899.6,1899.2,0.03685]
[1680708913002,5.572,1899.6,1899.3,0.01842]
[1680708913330,5.572,1899.6,1899.2,0.05527]
[1680708913633,5.572,1899.6,1899.2,0.01842]
[1680708913835,5.572,1899.6,1899.1,0.03685]
[1680708913996,5.572,1899.6,1899.2,0.01842]
[1680708914331,5.572,1899.6,1899.1,0.03685]
[1680708914542,5.572,1899.6,1899.2,0.01842]
[1680708914903,5.572,1899.6,1899.1,0.03685]
[1680708914904,5.572,1899.6,1899.3,0.01842]
[1680708916130,5.572,1899.6,1899.2,0.01842]
[1680708916319,5.572,1899.6,1899.3,0.01842]
[1680708918022,5.572,1899.6,1899.2,0.01842]
[1680708918191,5.572,1899.6,1899.3,0.01842]
[1680708918639,5.572,1899.6,1899.1,0.03685]
[1680708918843,5.572,1899.6,1899.3,0.01842]
[1680708919338,5.572,1899.6,1899.2,0.01842]
[1680708920255,5.572,1899.6,1899.4,0.03685]
[1680708920404,5.572,1899.6,1899.5,0.01842]
[1680708922020,5.572,1899.6,1899.4,0.03685]
[1680708922228,5.572,1899.6,1899.4,0.01842]
[1680708922543,5.572,1899.6,1899.3,0.11056]
[1680708922544,5.572,1899.6,1899.5,0.01842]
[1680708922697,5.572,1899.6,1899.4,0.01842]
[1680708922901,5.572,1899.6,1899.3,0.01842]
[1680708923517,5.572,1899.6,1899.4,0.01842]
[1680708923743,5.572,1899.6,1899.3,0.01842]
[1680708923899,5.572,1899.6,1899.0,0.006]
[1680708924104,5.572,1899.6,1899.4,0.01842]
[1680708924403,5.572,1899.6,1899.5,0.01842]
[1680708925708,5.572,1899.6,1899.4,0.01842]
[1680708926301,5.572,1899.6,1899.5,0.01842]
[1680708927699,5.572,1899.6,1899.4,0.03685]
[1680708928107,5.572,1899.6,1899.4,0.01842]
[1680708928805,5.572,1899.6,1899.3,0.03685]
[1680708929044,5.572,1899.6,1899.4,0.01842]
[1680708929267,5.572,1899.6,1899.3,0.01842]
[1680708929602,5.572,1899.6,1899.4,0.01842]
[1680708929814,5.572,1899.6,1899.3,0.01842]
[1680708930344,5.572,1899.6,1899.3,0.03685]
[1680708930652,5.572,1899.6,1899.4,0.01842]
[1680708930854,5.572,1899.6,1899.5,0.01842]
[1680708931714,5.5685674,1899.6,1899.5,0.01842]
[1680708932252,7.7805674,1899.6,1899.2,0.01842]
[1680708932423,1.106,1899.3,1899.1,0.03685]
[1680708932823,1.106,1899.3,1899.2,0.01842]
[1680708933724,1.106,1899.3,1899.2,0.05527]
[1680708934326,1.106,1899.3,1899.2,0.01842]
[1680708934657,1.602,1899.5,1898.9,0.01843]
[1680708934821,1.602,1899.5,1898.8,0.03686]
[1680708935162,1.602,1899.5,1898.9,0.01843]
[1680708935322,10.132,1899.4,1898.9,0.01843]
[1680708935560,10.134,1899.4,1898.9,0.01843]
[1680708936950,10.134,1899.4,1898.9,0.05529]
[1680708937894,10.134,1899.4,1898.9,0.28529]
[1680708940754,10.134,1899.4,1899.0,1.109]
[1680708940755,0.002,1899.4,1899.0,1.109]
[1680708941061,10.28540001,1899.7,1899.4,0.01842]
[1680708941279,10.28740001,1899.7,1899.4,0.01842]
[1680708941850,0.02165799,1899.6,1899.1,0.006]
[1680708942051,1.12365799,1899.6,1899.2,0.01842]
[1680708942274,1.12365799,1899.6,1899.3,0.01842]
[1680708942488,0.02165799,1899.6,1899.2,0.01842]
[1680708943803,10.28740001,1899.7,1899.3,0.03685]
[1680708944120,10.28740001,1899.7,1899.4,0.01842]
[1680708945174,10.28740001,1899.7,1899.3,0.01842]
[1680708945989,11.418058,1899.7,1899.2,0.01842]
[1680708946583,11.418058,1899.7,1899.3,0.01842]
[1680708946849,11.418058,1899.7,1899.2,0.01842]
[1680708946988,11.418058,1899.7,1899.3,0.01842]
[1680708947675,11.418058,1899.7,1899.2,0.01842]
[1680708949722,11.418058,1899.7,1899.1,0.006]
[1680708949723,1.109,1899.5,1899.1,0.006]
[1680708949922,1.109,1899.5,1899.1,0.01842]
[1680708950131,1.29325,1899.5,1898.9,0.02443]
[1680708950282,1.29325,1899.5,1898.8,0.04286]
[1680708950483,1.109,1899.5,1898.9,0.01843]
[1680708950692,1.109,1899.5,1898.9,0.05529]
[1680708951336,1.29325,1899.5,1898.9,0.01843]
[1680708951557,1.109,1899.4,1898.9,0.01843]
[1680708951846,1.109,1899.4,1898.8,0.04286]
[1680708951994,1.29326,1899.4,1898.8,0.06129]
[1680708952195,1.109,1899.4,1898.8,0.06129]
[1680708952415,1.109,1899.4,1898.8,0.05929]
[1680708952709,1.109,1899.4,1898.8,0.05529]
[1680708952937,1.29326,1899.4,1898.8,0.05529]
[1680708953235,1.102,1899.2,1898.8,0.01843]
[1680708953397,0.1102,1899.1,1898.8,0.01843]
[1680708954239,11.19075799,1899.3,1898.8,0.01843]
[1680708956603,11.37502799,1899.3,1898.8,0.01843]
[1680708956828,11.19075799,1899.3,1898.8,0.01843]